Cogmind - Beta 16 @@@ ROGUE MODE // 2025.11.21 @ 15:52:59 Player: goodsprings Result: Destroyed by YI-UF0 with YI-UF0's Doublenader Performance ------------- Evolutions (0) 0 Regions Visited (2) 400 Robots Destroyed (18) 90 Value Destroyed (264) 264 Prototype IDs (0) 0 Alien Tech Used (0) 0 Bonus (0) 0 TOTAL SCORE: 754 Bonus ------- None Cogmind --------- Core Integrity 0/250 Matter 235/300 Energy 159/160 System Corruption 7% Temperature Warm (110) Movement Rolling (115) Ox1 Location -10/Mines Parts ------- > --- POWER (1) -------- Light Nuclear Core > --- PROPULSION (2) --- Compact Wheel > --- UTILITY (2) ------ Medium Storage Unit > --- WEAPON (2) ------- Autogun > --- INVENTORY (10) --- Visual Processing Unit Autogun Autogun Shotgun Shotgun Mining Laser Peak State ------------ > --- POWER ------------ Ion Engine > --- PROPULSION ------- Light Treads Light Treads > --- UTILITY ---------- Medium Storage Unit Medium Armor Plating > --- WEAPON ----------- Autogun Shotgun > --- INVENTORY -------- Aluminum Leg Aluminum Leg Compact Wheel Compact Wheel Large Storage Unit Visual Processing Unit Shotgun Shotgun Shotgun Mining Laser [Rating: 11] Favorites ----------- Power Ion Engine Engine Ion Engine Power Core Light Nuclear Core Propulsion Light Treads Treads Light Treads Leg Aluminum Leg Wheel Compact Wheel Utility Medium Storage Unit Device Seismic Detector Storage Medium Storage Unit Protection Medium Armor Plating Weapon Shotgun Energy Gun Medium Laser Ballistic Gun Shotgun Special Weapon Mining Laser Build | -11 -10 -10 ------- Run | Yrd Mat Min Slots Evolved . | . . . Power . | . . . Propulsion . | . . . Utility . | . . . Weapon . | . . . Parts Attached 22 | 8 10 4 Power 3 | 1 1 1 Engine 2 | 1 1 . Core 1 | . . 1 Reactor . | . . . Propulsion 6 | 2 2 2 Treads 2 | . 2 . Leg 2 | 2 . . Wheel 2 | . . 2 Hover . | . . . Flight . | . . . Utility 5 | 3 2 . Device 1 | 1 . . Storage 3 | 2 1 . Processor . | . . . Hackware . | . . . Protection 1 | . 1 . Artifact . | . . . Weapon 8 | 2 5 1 Energy Gun 1 | 1 . . Energy Cannon . | . . . Ballistic Gun 5 | 1 3 1 Ballistic Cannon . | . . . Launcher . | . . . Special Weapon 2 | . 2 . Impact Weapon . | . . . Slashing Weapon . | . . . Piercing Weapon . | . . . Special Melee Weapon . | . . . Unidentified Prototypes . | . . . Parts Lost 7 | . . 7 Power 1 | . . 1 Propulsion 3 | . . 3 Utility 1 | . . 1 Weapon 2 | . . 2 Highest Loss Streak 7 | . . 7 To Critical Strikes . | . . . Average Backups 9 | 5 9 9 Power . | 1 . . Propulsion 2 | 3 2 1 Utility 1 | . 1 1 Weapon 4 | 1 5 5 Tool/Special . | . . . Unused Backups 9 | 1 3 5 Power 2 | . 2 . Propulsion . | . . . Utility 2 | . . 2 Weapon 5 | 1 1 3 Tool/Special . | . . . Average Slot Usage (%) 98 | . 100 96 Engine 13 | . 14 12 Treads 23 | . 22 25 Leg 3 | . 5 . Device 1 | . 2 . Storage 14 | . 14 14 Protection 11 | . 11 12 Energy Gun 1 | . 3 . Ballistic Gun 21 | . 16 27 Special Weapon 4 | . 8 . Peak Build Rating 11 | 7 11 11 Average Rating 9 | 5 9 10 On Entrance 5 | . 7 10 Avg Prop Armor Cover (%) . | . . . Naked Turns . | . . . Heaviest Build 28 | 15 28 28 Greatest Support 40 | 20 40 40 Greatest Overweight (x) 3 | 3 . 1 Average Overweight (x) . | . . . Largest Inventory Capacity 10 | 8 10 10 Average Capacity 9 | 7 9 10 Most Carried 10 | 8 10 10 Average Carried 9 | 6 9 9 Final Capacity 10 | 8 10 10 Final Carried 10 | 8 10 6 Class Distribution -------------------- 100% | Mutant Dominant Class ---------------- Mutant | -10/Materials Mutant | -10/Mines Resources | -11 -10 -10 ----------- Run | Yrd Mat Min Matter Collected 578 | 288 171 119 Remotely . | . . . Salvage Created 445 | 144 133 168 Parts 36 | 10 17 9 Haulers Intercepted . | . . . Recyclers Shooed . | . . . Parts Field Recycled . | . . . Retrieved Matter . | . . . Parts Self-Destructed . | . . . Prevented . | . . . Parts Restored . | . . . Kills | -11 -10 -10 ------- Run | Yrd Mat Min Combat Hostiles Destroyed 14 | . 4 10 Guns 14 | . 4 10 Classes Destroyed 6 | 2 3 1 Tunneler 3 | 3 . . Recycler 1 | 1 . . Watcher 2 | . 2 . Swarmer 9 | . 3 6 Grunt 3 | . 1 2 Assembled 2 | . . 2 Best Kill Streak 5 | 3 5 3 Combat Bots Only 4 | . 4 3 Max Kills in Single Turn 2 | 1 1 2 Gunslinging 1 | . . 1 Exploded . | . . . Melee . | . . . Uniques/NPCs Destroyed . | . . . Combat | -11 -10 -10 -------- Run | Yrd Mat Min Hostile Shots Fired 101 | . 20 81 Missed 26 | . 6 20 Hits 75 | . 14 61 Melee 10 | . . 10 Projectile 65 | . 14 51 AOE 8 | . . 8 Critical Strikes 1 | . . 1 Damage Taken 1177 | . 158 1019 Core 256 | . . 256 Absorbed by Shields . | . . . Core Remaining (%) 100 | 100 . . Volleys Fired 48 | 6 23 19 Largest 2 | 2 2 2 Hottest 123 | 70 123 46 Shots Fired 75 | 12 26 37 Gun 67 | 12 18 37 Cannon . | . . . Launcher . | . . . Special 8 | . 8 . Kinetic 59 | 6 16 37 Thermal 16 | 6 10 . Explosive . | . . . Electromagnetic . | . . . Robot Hit Streak 6 | 6 6 4 Robot Miss Streak 8 | 3 2 8 Penetration Max . | . . . Secondary Targets 3 | . . 3 Max Gunslinging Chain 1 | . . 1 Shots Hit Robots 50 | 7 16 27 Core Hits 30 | 5 10 15 Critical Kills 1 | . . 1 Critical Parts Destroyed . | . . . Critical Strikes 2 | 1 . 1 Burn 1 | 1 . . Destroy 1 | . . 1 Melee Attacks . | . . . Impact . | . . . Slashing . | . . . Piercing . | . . . Sneak Attacks . | . . . Combat Hostiles . | . . . Follow-up Attacks . | . . . Damage Inflicted 691 | 83 223 385 Guns 684 | 83 223 378 Cannons . | . . . Explosions . | . . . Melee . | . . . Ramming 7 | . . 7 Kinetic 632 | 44 210 378 Thermal 52 | 39 13 . Explosive . | . . . Electromagnetic . | . . . Impact . | . . . Slashing . | . . . Piercing . | . . . Highest Corruption 7 | . . 7 Average Corruption 7 | . . 7 Corruption Purged . | . . . Corruption Blocked . | . . . Effects 1 | . . 1 Heat Flow Errors 1 | . . 1 Overload Shots . | . . . Overflow Damage . | . . . Projectiles . | . . . Explosions . | . . . Melee . | . . . Knockbacks . | . . . Impact . | . . . Kinetic . | . . . Secondary . | . . . Self-Inflicted Damage . | . . . Shots . | . . . Rammed 2 | . . 2 Targets Rammed 2 | . . 2 Kicked . | . . . Crushed . | . . . Highest Temperature 190 | 18 64 190 Average Temperature 27 | 9 21 55 Received Heat Transfer 156 | . 69 87 Siege Activations . | . . . Martial Activations . | . . . Shielding Activations . | . . . Robots Disrupted . | . . . Combat Hostiles . | . . . Robots Corrupted . | . . . Combat Hostiles . | . . . Parts Fried . | . . . Impact Corruptions . | . . . Robots Melted . | . . . Combat Hostiles . | . . . Parts Melted 3 | 3 . . Heat Transferred 222 | 185 37 . Parts Sabotaged . | . . . Parts Stolen . | . . . Parts Stripped . | . . . Power Chain Reactions . | . . . Alert | -11 -10 -10 ------- Run | Yrd Mat Min Maximum Alert Level . | . . . Low Security (%) 100 | 100 100 100 Level 1 . | . . . Level 2 . | . . . Level 3 . | . . . Level 4 . | . . . Level 5 . | . . . High Security . | . . . Max Security . | . . . Peak Influence 153 | 10 80 153 Initial 13 | . . 13 Average 38 | 1 18 79 Influence Increases 328 | 20 118 190 Destroy 0b10 Robot/C 240 | . 80 160 Destroy 0b10 Robot/NC 30 | 20 10 . Destroy Leader 44 | . 14 30 Successful Hack 7 | . 7 . Destroy Structure 7 | . 7 . Influence Decreases 328 | 20 83 225 Entered New Map 22 | . . 22 Time Decay 273 | 20 83 170 Lost Part 33 | . . 33 Squads Dispatched . | . . . Investigation . | . . . Extermination . | . . . Reinforcement . | . . . Assault . | . . . Garrison . | . . . Intercept . | . . . Searches Triggered . | . . . Construction Impeded . | . . . Haulers Reinforced . | . . . Active Scanning Responses . | . . . Cargo Convoy Interrupts . | . . . Stealth | -11 -10 -10 --------- Run | Yrd Mat Min Distress Signals . | . . . Communications Jammed . | . . . Distress Signals . | . . . Times Spotted 38 | . 7 31 Peak Tracking Total 20 | . 4 20 Tactical Retreats . | . . . Traps | -11 -10 -10 ------- Run | Yrd Mat Min Traps Triggered . | . . . Indirectly . | . . . Trap Hack Attempts . | . . . Triggered . | . . . Disarmed . | . . . Reprogrammed . | . . . Reused . | . . . Traps Extracted . | . . . Installed . | . . . Triggered . | . . . Machines | -11 -10 -10 ---------- Run | Yrd Mat Min Machines Disabled . | . . . Max in Single Turn . | . . . Machines Repaired . | . . . Machines Dismantled . | . . . Machines Sabotaged . | . . . Overloaded Fab Kills . | . . . Hacking | -11 -10 -10 --------- Run | Yrd Mat Min Machines Accessed 6 | . 6 . Terminals 6 | . 6 . Fabricators . | . . . Repair Stations . | . . . Recycling Units . | . . . Scanalyzers . | . . . Garrison Access . | . . . Total Hacks 14 | . 14 . Successful 8 | . 8 . Failed 6 | . 6 . Catastrophic 1 | . 1 . Database Lockouts . | . . . Manual 1 | . 1 . Terminals 14 | . 14 . Fabricators . | . . . Repair Stations . | . . . Recycling Units . | . . . Scanalyzers . | . . . Garrison Access . | . . . Terminal Hacks 8 | . 8 . Record 4 | . 4 . Branch Access Points 1 | . 1 . Alert Level 1 | . 1 . Locate Traps 1 | . 1 . Reinforcement Status 1 | . 1 . Fabricator Hacks . | . . . Repair Station Hacks . | . . . Recycling Unit Hacks . | . . . Scanalyzer . | . . . Garrison Access Hacks . | . . . Unauthorized Hacks . | . . . Terminals . | . . . Fabricators . | . . . Repair Stations . | . . . Recycling Units . | . . . Scanalyzers . | . . . Garrison Access . | . . . Data Cores Recovered . | . . . Used . | . . . Hacking Detections 4 | . 4 . Full Trace Events . | . . . Feedback Events . | . . . Feedback Blocked . | . . . Robot Schematics Acquired . | . . . Robots Built . | . . . Authchips . | . . . Time . | . . . Total Robot Build Rating . | . . . Part Schematics Acquired . | . . . Parts Built . | . . . Authchips . | . . . Time . | . . . Total Part Build Rating . | . . . Part Studies Acquired . | . . . Parts Repaired . | . . . Time . | . . . Parts Recycled . | . . . Recycled Matter . | . . . Retrieved Matter . | . . . Retrieved Components . | . . . Parts Scanalyzed . | . . . Part Schematics Acquired . | . . . Parts Damaged . | . . . Bothacking | -11 -10 -10 ------------ Run | Yrd Mat Min Used RIF Installer . | . . . Robots Hacked . | . . . Non-combat . | . . . Combat . | . . . Robot Hacks Applied . | . . . Relay Couplers Released . | . . . Fabnet Peak Effective % . | . . . Robots Rewired . | . . . Allies Hacked . | . . . Hacks Repelled . | . . . Allies | -11 -10 -10 -------- Run | Yrd Mat Min Total Allies . | . . . Largest Group . | . . . Highest-Rated Group . | . . . Highest-Rated Ally . | . . . Total Orders . | . . . Ally Attacks . | . . . Total Damage . | . . . Kills . | . . . Allies Corrupted . | . . . Allies Melted . | . . . Intel | -11 -10 -10 ------- Run | Yrd Mat Min Active Infowar (turns) 129 | 33 96 . Seismic 129 | 33 96 . Robot Analysis Total . | . . . Derelict Logs Recovered . | . . . Drone Launches . | . . . Drone Recoveries . | . . . Exploration | -11 -10 -10 ------------- Run | Yrd Mat Min Turns Passed 1029 | 134 531 364 Spaces Moved 563 | 82 292 189 Core 8 | 8 . . Treads 402 | . 220 182 Legs 146 | 74 72 . Wheels 7 | . . 7 Hover . | . . . Flight . | . . . Fastest Speed 50 | 50 120 100 Average Speed 147 | 117 150 157 Slowest Speed 200 | 200 160 160 Overloaded Moves . | . . . Propulsion Burnouts . | . . . Robots Hopped . | . . . Potential Cave-ins . | . . . Cave-ins Triggered . | . . . Exploration Rate (%) 34 | 4 46 53 Regions Visited 2 Branch Regions 1 Pre-discovered Areas 1 | . . 1 Known Exits Taken 1 | . 1 . Unknown Exits Taken 1 | 1 . . Scrap Searched 1 | . . 1 Spaces Dug 7 | . 7 . Terrain Destroyed 7 | . 7 . Melee . | . . . Projectile 7 | . 7 . AOE . | . . . Terrain Rammed . | . . . Walls Destroyed . | . . . Machines Disabled . | . . . Actions | -11 -10 -10 --------- Run | Yrd Mat Min Total 668 | 107 344 217 Wait . | . . . Move 561 | 81 291 189 Hop . | . . . Pick Up 18 | 10 7 1 Fast Attach 9 | 7 2 . Attach 5 | 1 . 4 Detach . | . . . Swap 11 | . 10 1 Drop 14 | 2 11 1 Fire 48 | 6 23 19 Melee . | . . . Ram . | . . . Kick . | . . . Crush 2 | . . 2 Escape Stasis . | . . . Rewire . | . . . Trap . | . . . Miscellaneous . | . . . Route ------- -11/Scrapyard -10/Materials (discovered 2 exits: [*Mat] / *Min) -10/Mines (discovered 1 exit: [*Mat]) History --------- Turn | Location | Event 21 | -11/Scrapyard | Discovered new exit (range 15) 135 | -11/Scrapyard | Entered Materials 278 | -10/Materials | Discovered new exit (range 10) 323 | -10/Materials | Build established: Mutant 410 | -10/Materials | Discovered new exit (range 12) 557 | -10/Materials | Identified exit to Mines 666 | -10/Materials | Entered Mines 842 | -10/Mines | Discovered new exit (range 13) 867 | -10/Mines | Learned location of Storage (-7) 990 | -10/Mines | Assembled infested the area 1013 | -10/Mines | Core integrity fell below 50% 1029 | -10/Mines | Core integrity fell below 20% 1030 | -10/Mines | Destroyed by YI-UF0 with YI-UF0's Doublenader Last Messages --------------- 01006_ System corrupted by crushing effect (+2). 01007_ as-32891 destroyed. 01007_ as-31933 destroyed. 01009_ as-81752 destroyed. 01009_ K-01 Serf destroyed. 01011_ as-04516 destroyed. 01013_ Shotgun destroyed. 01013_ as-16710 destroyed. 01016_ as-36251 destroyed. 01016_ as-64871 destroyed. 01017_ The unstable cave ceiling collapses. 01018_ YI-UF0: "BOOM!" 01018_ D-53 Grenadier destroyed. 01020_ The unstable cave ceiling collapses. 01022_ System corrupted: Heat flow error (+208). 01024_ D-53 Grenadier destroyed. 01025_ T-07 Excavator is excavating. 01026_ Com. Wheel destroyed. 01026_ Shotgun destroyed. 01027_ The unstable cave ceiling collapses. Map ----- +----------------------------------------------------+ | ???????????# #####???????# #????????????????? | | ?????????### #???????????# # #????????????????? | | ?????????# #???????????# # #????????????????? | | ?????????# ####???????????# # #????????????????? | | ?????????# #??????????????# # #????????????????? | | ?????????# #?????????????? # #????????????????? | | ?????????# #?????????????? # #????????????????? | | ?????????# #????????????? # #????????????????? | | ?????????# #?????????????? ? ?????????????????? | | ?????????# #?????????????? #? ?????????????????? | | ?????????# #?????????????? u#????????????????????? | | ?????????# #????????####?# ##???????????????????? | | ?????????# ########## ## ###?????????????????? | | ########## %% ## ??????????????????? | | # ###### #? ??????#???????????? | | # #########????#%#?# #????? ##??????????? | | # ?????????????# ### #???? ???????????? | | # ?????????????## #??? =????????????? | | # ?????????????# ##?? *%!#??????????? | | ??????????????## #? = ???????????? | | ???????????????#### # ##???????????? | | ???????????????????#### # # #???????????? | | ????????????##??????## ###???????????? | | ???????????## ##### g #???????????? | | ???????????# % #???????????? | | ???????????# @ ???????? | | ???????????# ???????? | | ???????????# # # ????????? | | ??????????? ## ????????? | | ?????????? ????# ?????????? | | ???????????????????# ## ?????????? | | ??????????????????# ###?# ?????????? | | ?????????????????# ????## ??????????? | | ?????????????????# ????? < ??????????? | | ?????????????????## ????? ???????????? | | ?????????????????? =% ????? ???????????? | | ????????????????? ## ##????###????????????? | | ????????????????# ###? ##????????????????????? | | ????????????????# ????##?????????????????????? | | ????????????????# #???????????????????????????? | | ????????????????### ????????????????????????????? | | ??????????????????# ????????????????????????????? | | ?????????????????? ????????????????????????????? | | ?????????????????????????????????????????????????? | | ?????????????????????????????????????????????????? | | ?????????????????????????????????????????????????? | | ?????????????????????????????????????????????????? | | ?????????????????????????????????????????????????? | | ?????????????????????????????????????????????????? | | | +----------------------------------------------------+ Best States ------------- Heat Dissipation 25 Energy Generation 14 Energy Capacity 250 Matter Stores 300 Matter Capacity 300 Sight Range 16 Terrain Scan Density 10 Armor Coverage 225 Evasion (%) 55 Recoil Reduction 2 Item Schematics ----------------- None Robot Schematics ------------------ None Fabricated ------------ Nothing Repaired ---------- Nothing Studied --------- None Alien Tech Used ----------------- None Achievements -------------- Hunted Challenges ------------ None Game ------ Seed GravitonRainbowClaw Manual? 0 Play Time 00:13:34 Cumulative 31.9 hours Start 2025.11.21 @ 15:40:23 End 2025.11.21 @ 15:52:59 Sessions 1 Manual Loads 0 Difficulty Rogue Special Mode None Game No. 43 Rogue 41 Adventurer 2 Explorer 0 Win Type - Total 0 Types 0/0/0/0/0/0/0/0/0/0 Lore% 11 Gallery% 25 Achievement% 18 Wizard Run 0 Options --------- Layout 1 ASCII 0 Keyboard 0 Movement Mouse Keybinds 0 Fullscreen 1 Font 32/Terminus Map View 50x35 Zoom Use 0% Tactical HUD 1 Map Filters NONE Filters NONE Steam 1 RUN: 9034862f-0bda-482f-9e41-bacf037612f6